[Event "Titled Tuesday Blitz June 22 2021"]
[White "Ozen, Deniz"]
[Black "Potapova, Margarita"]
[WhiteFideId "6349196"]
[BlackFideId "14126869"]
[WhiteElo "2326"]
[BlackElo "2229"]
[Result "1-0"]
[Round "05"]
[TimeControl "180+1"]
[Date "2021.06.22"]
[WhiteClock "0:00:08"]
[BlackClock "0:00:03"]

1. d4 {[%clk 0:02:56]}  Nf6 {[%clk 0:02:58]} 2. Bf4 {[%clk 0:02:56]}  g6 {[%clk 0:02:55]} 3. Nc3 {[%clk 0:02:55]}  Bg7 {[%clk 0:02:55]} 4. e4 {[%clk 0:02:55]}  d5 {[%clk 0:02:56]} 5. e5 {[%clk 0:02:47]}  Ne4 {[%clk 0:02:56]} 6. Bd3 {[%clk 0:02:45]}  Nxc3 {[%clk 0:02:54]} 7. bxc3 {[%clk 0:02:46]}  c5 {[%clk 0:02:55]} 8. Nf3 {[%clk 0:02:46]}  c4 {[%clk 0:02:54]} 9. Be2 {[%clk 0:02:45]}  b5 {[%clk 0:02:55]} 10. O-O {[%clk 0:02:45]}  Nc6 {[%clk 0:02:51]} 11. Qd2 {[%clk 0:02:44]}  O-O {[%clk 0:02:47]} 12. Rfb1 {[%clk 0:02:40]}  a6 {[%clk 0:02:43]} 13. h3 {[%clk 0:02:35]}  f6 {[%clk 0:02:38]} 14. exf6 {[%clk 0:02:33]}  exf6 {[%clk 0:02:37]} 15. Bf1 {[%clk 0:02:27]}  Bf5 {[%clk 0:02:35]} 16. a4 {[%clk 0:02:21]}  bxa4 {[%clk 0:02:29]} 17. Rb7 {[%clk 0:02:18]}  Rf7 {[%clk 0:02:15]} 18. Rxf7 {[%clk 0:02:17]}  Kxf7 {[%clk 0:02:15]} 19. Rxa4 {[%clk 0:02:17]}  a5 {[%clk 0:02:13]} 20. Qc1 {[%clk 0:02:02]}  Qd7 {[%clk 0:02:09]} 21. Ra1 {[%clk 0:01:48]}  a4 {[%clk 0:01:58]} 22. Nd2 {[%clk 0:01:48]}  Bf8 {[%clk 0:01:46]} 23. Nb1 {[%clk 0:01:35]}  Na7 {[%clk 0:01:35]} 24. Bh6 {[%clk 0:01:10]}  Bd6 {[%clk 0:01:29]} 25. Bf4 {[%clk 0:01:10]}  Bf8 {[%clk 0:01:29]} 26. Bh6 {[%clk 0:01:10]}  Be7 {[%clk 0:01:29]} 27. g4 {[%clk 0:00:46]}  Be6 {[%clk 0:01:19]} 28. g5 {[%clk 0:00:32]}  Bxh3 {[%clk 0:01:14]} 29. Bxh3 {[%clk 0:00:26]}  Qxh3 {[%clk 0:01:15]} 30. Rxa4 {[%clk 0:00:27]}  Bd6 {[%clk 0:01:08]} 31. Qe3 {[%clk 0:00:16]}  Qh2+ {[%clk 0:00:38]} 32. Kf1 {[%clk 0:00:16]}  Bf4 {[%clk 0:00:34]} 33. Qf3 {[%clk 0:00:01]}  Ke6 {[%clk 0:00:23]} 34. Ra6+ {[%clk 0:00:01]}  Bd6 {[%clk 0:00:23]} 35. Qxf6+ {[%clk 0:00:02]}  Kd7 {[%clk 0:00:23]} 36. Qf7+ {[%clk 0:00:03]}  Be7 {[%clk 0:00:23]} 37. Qxd5+ {[%clk 0:00:04]}  Bd6 {[%clk 0:00:18]} 38. Qxa8 {[%clk 0:00:04]}  Qh1+ {[%clk 0:00:12]} 39. Ke2 {[%clk 0:00:05]}  Qxa8 {[%clk 0:00:12]} 40. Na3 {[%clk 0:00:04]}  Qb7 {[%clk 0:00:11]} 41. Ra4 {[%clk 0:00:03]}  Nc6 {[%clk 0:00:11]} 42. Nxc4 {[%clk 0:00:03]}  Qb5 {[%clk 0:00:11]} 43. Kd3 {[%clk 0:00:02]}  Qxa4 {[%clk 0:00:11]} 44. Nb6+ {[%clk 0:00:02]}  Kc7 {[%clk 0:00:11]} 45. Nxa4 {[%clk 0:00:03]}  Ne7 {[%clk 0:00:12]} 46. Nc5 {[%clk 0:00:03]}  Nd5 {[%clk 0:00:12]} 47. Ne4 {[%clk 0:00:04]}  Nf4+ {[%clk 0:00:11]} 48. Kc4 {[%clk 0:00:05]}  Be7 {[%clk 0:00:11]} 49. Nf6 {[%clk 0:00:05]}  Nh3 {[%clk 0:00:07]} 50. Nd5+ {[%clk 0:00:05]}  Kd7 {[%clk 0:00:07]} 51. Nxe7 {[%clk 0:00:06]}  Kxe7 {[%clk 0:00:08]} 52. Kd5 {[%clk 0:00:07]}  Nxf2 {[%clk 0:00:09]} 53. c4 {[%clk 0:00:07]}  Nd1 {[%clk 0:00:09]} 54. c5 {[%clk 0:00:07]}  Nc3+ {[%clk 0:00:09]} 55. Kc6 {[%clk 0:00:08]}  Ne2 {[%clk 0:00:08]} 56. d5 {[%clk 0:00:08]}  Nd4+ {[%clk 0:00:09]} 57. Kb7 {[%clk 0:00:08]}  Nxc2 {[%clk 0:00:09]} 58. d6+ {[%clk 0:00:07]}  Ke6 {[%clk 0:00:08]} 59. c6 {[%clk 0:00:07]}  Ne3 {[%clk 0:00:04]} 60. d7 {[%clk 0:00:06]}  Ke7 {[%clk 0:00:04]} 61. Kc8 {[%clk 0:00:06]}  Nd5 {[%clk 0:00:02]} 62. d8=Q+ {[%clk 0:00:07]}  Ke6 {[%clk 0:00:02]} 63. Qd7+ {[%clk 0:00:07]}  Ke5 {[%clk 0:00:03]} 64. Qxd5+ {[%clk 0:00:08]} 1-0


[Site "https://www.chess.com"]

[Event "Titled Tuesday Blitz June 22 2021"]
[White "Pajeken, Jakob Leon"]
[Black "Lagno, Kateryna"]
[WhiteFideId "12942839"]
[BlackFideId "14109336"]
[WhiteElo "2024"]
[BlackElo "2608"]
[Result "0-1"]
[Round "05"]
[TimeControl "180+1"]
[Date "2021.06.22"]
[WhiteClock "0:00:18"]
[BlackClock "0:00:51"]

1. d4 {[%clk 0:02:56]}  Nf6 {[%clk 0:02:59]} 2. Nf3 {[%clk 0:02:56]}  g6 {[%clk 0:02:59]} 3. g3 {[%clk 0:02:56]}  Bg7 {[%clk 0:02:59]} 4. Bg2 {[%clk 0:02:57]}  d5 {[%clk 0:02:59]} 5. O-O {[%clk 0:02:56]}  O-O {[%clk 0:02:59]} 6. Ne5 {[%clk 0:02:56]}  Nfd7 {[%clk 0:02:58]} 7. Bxd5 {[%clk 0:02:38]}  Nxe5 {[%clk 0:02:55]} 8. dxe5 {[%clk 0:02:38]}  Bxe5 {[%clk 0:02:56]} 9. Nc3 {[%clk 0:02:35]}  c6 {[%clk 0:02:53]} 10. Bg2 {[%clk 0:02:33]}  Bf5 {[%clk 0:02:49]} 11. Bh6 {[%clk 0:02:33]}  Re8 {[%clk 0:02:40]} 12. e4 {[%clk 0:02:23]}  Be6 {[%clk 0:02:38]} 13. f4 {[%clk 0:02:18]}  Bd4+ {[%clk 0:02:30]} 14. Kh1 {[%clk 0:02:18]}  Bc4 {[%clk 0:02:30]} 15. Re1 {[%clk 0:02:10]}  Bf2 {[%clk 0:02:27]} 16. Qxd8 {[%clk 0:02:09]}  Rxd8 {[%clk 0:02:28]} 17. Red1 {[%clk 0:02:10]}  Na6 {[%clk 0:02:28]} 18. a3 {[%clk 0:01:58]}  f6 {[%clk 0:02:23]} 19. e5 {[%clk 0:01:51]}  Bd4 {[%clk 0:02:15]} 20. exf6 {[%clk 0:01:45]}  exf6 {[%clk 0:02:16]} 21. h4 {[%clk 0:01:42]}  Kf7 {[%clk 0:02:14]} 22. Kh2 {[%clk 0:01:39]}  Nc5 {[%clk 0:02:10]} 23. a4 {[%clk 0:01:27]}  a5 {[%clk 0:02:07]} 24. Ra3 {[%clk 0:01:24]}  Na6 {[%clk 0:02:05]} 25. Rc1 {[%clk 0:01:14]}  Be3 {[%clk 0:01:59]} 26. Re1 {[%clk 0:01:10]}  Bc5 {[%clk 0:01:56]} 27. Raa1 {[%clk 0:01:09]}  Nb4 {[%clk 0:01:50]} 28. Ne4 {[%clk 0:01:02]}  Be7 {[%clk 0:01:50]} 29. Rac1 {[%clk 0:00:52]}  Bd5 {[%clk 0:01:43]} 30. c3 {[%clk 0:00:48]}  Nd3 {[%clk 0:01:43]} 31. Red1 {[%clk 0:00:36]}  Nxc1 {[%clk 0:01:42]} 32. Rxc1 {[%clk 0:00:37]}  Bb3 {[%clk 0:01:42]} 33. Re1 {[%clk 0:00:36]}  Rd1 {[%clk 0:01:40]} 34. Re2 {[%clk 0:00:34]}  Rad8 {[%clk 0:01:40]} 35. Bf3 {[%clk 0:00:35]}  Bc4 {[%clk 0:01:37]} 36. Re3 {[%clk 0:00:33]}  R1d3 {[%clk 0:01:33]} 37. Rxd3 {[%clk 0:00:31]}  Bxd3 {[%clk 0:01:34]} 38. Nf2 {[%clk 0:00:30]}  Bc2 {[%clk 0:01:34]} 39. Kg2 {[%clk 0:00:27]}  Bxa4 {[%clk 0:01:33]} 40. f5 {[%clk 0:00:26]}  gxf5 {[%clk 0:01:31]} 41. Bh5+ {[%clk 0:00:25]}  Ke6 {[%clk 0:01:31]} 42. Nh3 {[%clk 0:00:25]}  Bc2 {[%clk 0:01:25]} 43. Nf4+ {[%clk 0:00:25]}  Kd7 {[%clk 0:01:25]} 44. Bf7 {[%clk 0:00:20]}  Kc8 {[%clk 0:01:25]} 45. Be6+ {[%clk 0:00:20]}  Kb8 {[%clk 0:01:25]} 46. Bg7 {[%clk 0:00:20]}  b5 {[%clk 0:01:22]} 47. Kf3 {[%clk 0:00:20]}  Be4+ {[%clk 0:01:19]} 48. Ke2 {[%clk 0:00:19]}  b4 {[%clk 0:01:15]} 49. cxb4 {[%clk 0:00:20]}  axb4 {[%clk 0:01:13]} 50. h5 {[%clk 0:00:21]}  Kb7 {[%clk 0:01:08]} 51. h6 {[%clk 0:00:21]}  Kb6 {[%clk 0:01:06]} 52. b3 {[%clk 0:00:20]}  Ra8 {[%clk 0:01:04]} 53. Ke3 {[%clk 0:00:20]}  Ra2 {[%clk 0:01:01]} 54. Nd3 {[%clk 0:00:18]}  Rg2 {[%clk 0:00:56]} 55. g4 {[%clk 0:00:17]}  Rg3+ {[%clk 0:00:54]} 56. Kd4 {[%clk 0:00:17]}  Rxd3+ {[%clk 0:00:54]} 57. Kc4 {[%clk 0:00:18]}  Rc3+ {[%clk 0:00:51]} 58. Kd4 {[%clk 0:00:18]}  Bc5# {[%clk 0:00:51]} 0-1


[Site "https://www.chess.com"]

[Event "Titled Tuesday Blitz June 22 2021"]
[White "Pakleza, Zbigniew"]
[Black "Nguyen, Quoc Hy"]
[WhiteFideId "1119290"]
[BlackFideId "12410853"]
[WhiteElo "2526"]
[BlackElo "1975"]
[Result "0-1"]
[Round "05"]
[TimeControl "180+1"]
[Date "2021.06.22"]
[WhiteClock "0:00:06"]
[BlackClock "0:00:08"]

1. d4 {[%clk 0:03:00]}  d5 {[%clk 0:02:57]} 2. Bf4 {[%clk 0:03:00]}  Nf6 {[%clk 0:02:56]} 3. e3 {[%clk 0:03:00]}  Bf5 {[%clk 0:02:55]} 4. c4 {[%clk 0:03:00]}  e6 {[%clk 0:02:54]} 5. Nc3 {[%clk 0:03:00]}  c6 {[%clk 0:02:55]} 6. Qb3 {[%clk 0:03:01]}  Qc8 {[%clk 0:02:26]} 7. Rc1 {[%clk 0:03:00]}  Nbd7 {[%clk 0:02:26]} 8. h3 {[%clk 0:03:00]}  Be7 {[%clk 0:02:26]} 9. Nf3 {[%clk 0:03:00]}  O-O {[%clk 0:02:26]} 10. Be2 {[%clk 0:03:01]}  h6 {[%clk 0:02:25]} 11. O-O {[%clk 0:03:01]}  Bh7 {[%clk 0:01:57]} 12. Rfd1 {[%clk 0:03:00]}  Nb6 {[%clk 0:01:51]} 13. Ne5 {[%clk 0:02:53]}  Nfd7 {[%clk 0:01:33]} 14. cxd5 {[%clk 0:02:16]}  exd5 {[%clk 0:01:25]} 15. Bg4 {[%clk 0:02:03]}  f5 {[%clk 0:00:52]} 16. Bf3 {[%clk 0:01:54]}  Nxe5 {[%clk 0:00:51]} 17. Bxe5 {[%clk 0:01:52]}  Qd7 {[%clk 0:00:45]} 18. Ne2 {[%clk 0:01:38]}  Kh8 {[%clk 0:00:43]} 19. Nf4 {[%clk 0:01:33]}  Nc4 {[%clk 0:00:43]} 20. Nd3 {[%clk 0:01:24]}  Bd6 {[%clk 0:00:26]} 21. Bxd6 {[%clk 0:01:24]}  Nxd6 {[%clk 0:00:26]} 22. Ne5 {[%clk 0:01:20]}  Qe7 {[%clk 0:00:27]} 23. g3 {[%clk 0:00:59]}  Nf7 {[%clk 0:00:27]} 24. Nd3 {[%clk 0:00:54]}  Ng5 {[%clk 0:00:27]} 25. Bg2 {[%clk 0:00:54]}  Bg6 {[%clk 0:00:26]} 26. Nf4 {[%clk 0:00:51]}  Bf7 {[%clk 0:00:25]} 27. Qc2 {[%clk 0:00:43]}  Ne4 {[%clk 0:00:23]} 28. Kh2 {[%clk 0:00:43]}  Rae8 {[%clk 0:00:21]} 29. a3 {[%clk 0:00:41]}  Nd6 {[%clk 0:00:20]} 30. Qc5 {[%clk 0:00:38]}  a6 {[%clk 0:00:18]} 31. Re1 {[%clk 0:00:38]}  Nc4 {[%clk 0:00:18]} 32. Qxe7 {[%clk 0:00:37]}  Rxe7 {[%clk 0:00:19]} 33. Rc2 {[%clk 0:00:37]}  g5 {[%clk 0:00:19]} 34. Nd3 {[%clk 0:00:37]}  f4 {[%clk 0:00:19]} 35. gxf4 {[%clk 0:00:34]}  Bg6 {[%clk 0:00:19]} 36. Rxc4 {[%clk 0:00:20]}  dxc4 {[%clk 0:00:11]} 37. Ne5 {[%clk 0:00:21]}  Bd3 {[%clk 0:00:09]} 38. fxg5 {[%clk 0:00:21]}  Rxf2 {[%clk 0:00:06]} 39. Kg3 {[%clk 0:00:16]}  Rxb2 {[%clk 0:00:06]} 40. gxh6 {[%clk 0:00:15]}  Kh7 {[%clk 0:00:06]} 41. Ng4 {[%clk 0:00:13]}  Ra2 {[%clk 0:00:04]} 42. Rc1 {[%clk 0:00:10]}  Rxa3 {[%clk 0:00:04]} 43. Kf4 {[%clk 0:00:11]}  c3 {[%clk 0:00:04]} 44. Ne5 {[%clk 0:00:10]}  Bg6 {[%clk 0:00:03]} 45. Be4 {[%clk 0:00:08]}  Bxe4 {[%clk 0:00:03]} 46. Kxe4 {[%clk 0:00:09]}  b5 {[%clk 0:00:03]} 47. Kd3 {[%clk 0:00:09]}  Kxh6 {[%clk 0:00:04]} 48. Nxc6 {[%clk 0:00:08]}  Rc7 {[%clk 0:00:04]} 49. d5 {[%clk 0:00:08]}  Rb3 {[%clk 0:00:04]} 50. e4 {[%clk 0:00:05]}  b4 {[%clk 0:00:04]} 51. Nd4 {[%clk 0:00:06]}  Rb2 {[%clk 0:00:05]} 52. d6 {[%clk 0:00:06]}  Rd7 {[%clk 0:00:04]} 53. e5 {[%clk 0:00:07]}  Rd2+ {[%clk 0:00:05]} 54. Ke4 {[%clk 0:00:06]}  a5 {[%clk 0:00:05]} 55. e6 {[%clk 0:00:06]}  Rxd6 {[%clk 0:00:05]} 56. Nf5+ {[%clk 0:00:06]}  Kg5 {[%clk 0:00:05]} 57. Nxd6 {[%clk 0:00:07]}  Rxd6 {[%clk 0:00:05]} 58. Ke5 {[%clk 0:00:08]}  Rd8 {[%clk 0:00:05]} 59. Rg1+ {[%clk 0:00:09]}  Kh4 {[%clk 0:00:05]} 60. e7 {[%clk 0:00:09]}  Re8 {[%clk 0:00:05]} 61. Kf6 {[%clk 0:00:09]}  b3 {[%clk 0:00:06]} 62. Rg7 {[%clk 0:00:03]}  c2 {[%clk 0:00:05]} 63. Rg4+ {[%clk 0:00:02]}  Kxh3 {[%clk 0:00:06]} 64. Rc4 {[%clk 0:00:03]}  b2 {[%clk 0:00:05]} 65. Rc3+ {[%clk 0:00:04]}  Kg4 {[%clk 0:00:06]} 66. Rc4+ {[%clk 0:00:03]}  Kf3 {[%clk 0:00:06]} 67. Kf7 {[%clk 0:00:04]}  Rxe7+ {[%clk 0:00:06]} 68. Kxe7 {[%clk 0:00:05]}  c1=Q {[%clk 0:00:07]} 69. Rd4 {[%clk 0:00:05]}  b1=Q {[%clk 0:00:08]} 70. Rd7 {[%clk 0:00:06]}  Qb4+ {[%clk 0:00:08]} 71. Kd8 {[%clk 0:00:06]}  Qb6+ {[%clk 0:00:07]} 72. Ke8 {[%clk 0:00:06]}  Qcc6 {[%clk 0:00:07]} 73. Kf8 {[%clk 0:00:06]}  Qxd7 {[%clk 0:00:07]} 74. Kg8 {[%clk 0:00:06]}  Qbd8# {[%clk 0:00:08]} 0-1


[Site "https://www.chess.com"]

[Event "Titled Tuesday Blitz June 22 2021"]
[White "Paragua, Mark"]
[Black "Savitha Shri B"]
[WhiteFideId "5201241"]
[BlackFideId "35061887"]
[WhiteElo "2493"]
[BlackElo "2006"]
[Result "1-0"]
[Round "05"]
[TimeControl "180+1"]
[Date "2021.06.22"]
[WhiteClock "0:00:04"]
[BlackClock "0:00:07"]

1. d4 {[%clk 0:03:00]}  c5 {[%clk 0:02:59]} 2. d5 {[%clk 0:02:59]}  e5 {[%clk 0:02:59]} 3. e4 {[%clk 0:02:58]}  d6 {[%clk 0:02:59]} 4. Nc3 {[%clk 0:02:58]}  g6 {[%clk 0:02:57]} 5. h4 {[%clk 0:02:57]}  Bg7 {[%clk 0:02:57]} 6. h5 {[%clk 0:02:57]}  Nf6 {[%clk 0:02:49]} 7. h6 {[%clk 0:02:52]}  Bf8 {[%clk 0:02:49]} 8. Be2 {[%clk 0:02:49]}  Be7 {[%clk 0:02:48]} 9. a4 {[%clk 0:02:43]}  Na6 {[%clk 0:02:47]} 10. Be3 {[%clk 0:02:35]}  Nb4 {[%clk 0:02:46]} 11. g4 {[%clk 0:02:33]}  Qa5 {[%clk 0:02:40]} 12. Kf1 {[%clk 0:02:28]}  O-O {[%clk 0:02:18]} 13. g5 {[%clk 0:02:28]}  Ne8 {[%clk 0:02:18]} 14. Nf3 {[%clk 0:02:26]}  Bg4 {[%clk 0:02:13]} 15. Kg2 {[%clk 0:02:17]}  Qd8 {[%clk 0:02:11]} 16. Qd2 {[%clk 0:02:13]}  f6 {[%clk 0:02:11]} 17. gxf6 {[%clk 0:02:07]}  Nxf6 {[%clk 0:02:12]} 18. Ng5 {[%clk 0:01:58]}  Qd7 {[%clk 0:02:07]} 19. f3 {[%clk 0:01:54]}  Bh5 {[%clk 0:02:02]} 20. Ne6 {[%clk 0:01:52]}  Rf7 {[%clk 0:01:58]} 21. Rag1 {[%clk 0:01:48]}  Ne8 {[%clk 0:01:31]} 22. Bg5 {[%clk 0:01:39]}  Nc7 {[%clk 0:01:29]} 23. Ng7 {[%clk 0:01:22]}  Raf8 {[%clk 0:01:23]} 24. Nxh5 {[%clk 0:01:21]}  gxh5 {[%clk 0:01:21]} 25. Rxh5 {[%clk 0:01:17]}  Kh8 {[%clk 0:01:20]} 26. Kh1 {[%clk 0:01:11]}  Bxg5 {[%clk 0:01:12]} 27. Rgxg5 {[%clk 0:01:06]}  Ne8 {[%clk 0:01:06]} 28. Rh2 {[%clk 0:00:56]}  Nf6 {[%clk 0:01:03]} 29. Rhg2 {[%clk 0:00:53]}  Ng8 {[%clk 0:00:56]} 30. Rh5 {[%clk 0:00:45]}  Nf6 {[%clk 0:00:55]} 31. Rh4 {[%clk 0:00:44]}  Qe7 {[%clk 0:00:43]} 32. Rh3 {[%clk 0:00:44]}  Qd7 {[%clk 0:00:43]} 33. Kh2 {[%clk 0:00:43]}  a6 {[%clk 0:00:40]} 34. b3 {[%clk 0:00:43]}  Ne8 {[%clk 0:00:38]} 35. Nd1 {[%clk 0:00:42]}  a5 {[%clk 0:00:24]} 36. Ne3 {[%clk 0:00:42]}  Na6 {[%clk 0:00:22]} 37. Rhg3 {[%clk 0:00:38]}  Qe7 {[%clk 0:00:20]} 38. Nf5 {[%clk 0:00:36]}  Qf6 {[%clk 0:00:21]} 39. Qxa5 {[%clk 0:00:29]}  Nb4 {[%clk 0:00:17]} 40. c3 {[%clk 0:00:28]}  Nc2 {[%clk 0:00:17]} 41. Bd1 {[%clk 0:00:22]}  Ne1 {[%clk 0:00:17]} 42. Rg1 {[%clk 0:00:22]}  Nd3 {[%clk 0:00:16]} 43. Qb5 {[%clk 0:00:19]}  Nf4 {[%clk 0:00:16]} 44. Qf1 {[%clk 0:00:19]}  Qd8 {[%clk 0:00:16]} 45. Rg4 {[%clk 0:00:15]}  Rxf5 {[%clk 0:00:15]} 46. exf5 {[%clk 0:00:14]}  Qf6 {[%clk 0:00:16]} 47. Qf2 {[%clk 0:00:13]}  Qxh6+ {[%clk 0:00:16]} 48. Qh4 {[%clk 0:00:13]}  Qf6 {[%clk 0:00:16]} 49. Qg3 {[%clk 0:00:12]}  Qf7 {[%clk 0:00:13]} 50. Bc2 {[%clk 0:00:10]}  Nf6 {[%clk 0:00:13]} 51. Rg5 {[%clk 0:00:11]}  h6 {[%clk 0:00:11]} 52. Qh4 {[%clk 0:00:09]}  Qh7 {[%clk 0:00:10]} 53. Rg6 {[%clk 0:00:06]}  Nxg6 {[%clk 0:00:10]} 54. Rxg6 {[%clk 0:00:07]}  Nd7 {[%clk 0:00:10]} 55. f6 {[%clk 0:00:06]}  h5 {[%clk 0:00:08]} 56. Qg5 {[%clk 0:00:04]}  Nxf6 {[%clk 0:00:08]} 57. Rh6 {[%clk 0:00:04]}  Ng4+ {[%clk 0:00:07]} 58. fxg4 {[%clk 0:00:04]} 1-0


[Site "https://www.chess.com"]

[Event "Titled Tuesday Blitz June 22 2021"]
[White "Pert, Richard G"]
[Black "Novikova, Galina"]
[WhiteFideId "404748"]
[BlackFideId "4157095"]
[WhiteElo "2441"]
[BlackElo "1947"]
[Result "1/2-1/2"]
[Round "05"]
[TimeControl "180+1"]
[Date "2021.06.22"]
[WhiteClock "0:00:07"]
[BlackClock "0:00:07"]

1. d4 {[%clk 0:03:00]}  d5 {[%clk 0:02:59]} 2. Nf3 {[%clk 0:03:00]}  Nc6 {[%clk 0:02:59]} 3. Bf4 {[%clk 0:02:54]}  Bf5 {[%clk 0:02:59]} 4. e3 {[%clk 0:02:52]}  e6 {[%clk 0:02:59]} 5. Bb5 {[%clk 0:02:51]}  Bd6 {[%clk 0:02:58]} 6. Nbd2 {[%clk 0:02:44]}  Ne7 {[%clk 0:02:58]} 7. O-O {[%clk 0:02:43]}  O-O {[%clk 0:02:58]} 8. Bg3 {[%clk 0:02:31]}  Ng6 {[%clk 0:02:57]} 9. c4 {[%clk 0:02:29]}  Bxg3 {[%clk 0:02:55]} 10. hxg3 {[%clk 0:02:28]}  Nce7 {[%clk 0:02:13]} 11. cxd5 {[%clk 0:02:15]}  exd5 {[%clk 0:02:13]} 12. Rc1 {[%clk 0:02:14]}  c6 {[%clk 0:02:13]} 13. Be2 {[%clk 0:02:12]}  h6 {[%clk 0:01:56]} 14. Nb3 {[%clk 0:02:12]}  Nc8 {[%clk 0:01:46]} 15. Nc5 {[%clk 0:02:06]}  Nd6 {[%clk 0:01:45]} 16. Qb3 {[%clk 0:02:06]}  Qe7 {[%clk 0:01:41]} 17. Qa3 {[%clk 0:01:59]}  Rfe8 {[%clk 0:01:22]} 18. Rfd1 {[%clk 0:01:56]}  h5 {[%clk 0:01:13]} 19. Bf1 {[%clk 0:01:45]}  h4 {[%clk 0:00:54]} 20. Nxh4 {[%clk 0:01:39]}  Nxh4 {[%clk 0:00:55]} 21. gxh4 {[%clk 0:01:40]}  Qxh4 {[%clk 0:00:56]} 22. g3 {[%clk 0:01:32]}  Qh5 {[%clk 0:00:52]} 23. Bg2 {[%clk 0:01:24]}  Bg4 {[%clk 0:00:38]} 24. Rf1 {[%clk 0:01:03]}  Bf3 {[%clk 0:00:38]} 25. Nd3 {[%clk 0:01:02]}  Nc4 {[%clk 0:00:29]} 26. Qc3 {[%clk 0:00:54]}  Bxg2 {[%clk 0:00:27]} 27. Kxg2 {[%clk 0:00:52]}  Qe2 {[%clk 0:00:23]} 28. Kg1 {[%clk 0:00:42]}  Qf3 {[%clk 0:00:14]} 29. Nf4 {[%clk 0:00:35]}  g5 {[%clk 0:00:10]} 30. Ng2 {[%clk 0:00:32]}  Kg7 {[%clk 0:00:10]} 31. Qd3 {[%clk 0:00:25]}  Rh8 {[%clk 0:00:08]} 32. Qd1 {[%clk 0:00:25]}  Qf5 {[%clk 0:00:02]} 33. g4 {[%clk 0:00:20]}  Qg6 {[%clk 0:00:02]} 34. b3 {[%clk 0:00:18]}  Qh7 {[%clk 0:00:02]} 35. f3 {[%clk 0:00:11]}  Nxe3 {[%clk 0:00:02]} 36. Qd2 {[%clk 0:00:10]}  Qh2+ {[%clk 0:00:02]} 37. Kf2 {[%clk 0:00:08]}  Nxg2 {[%clk 0:00:02]} 38. Rh1 {[%clk 0:00:08]}  Qxh1 {[%clk 0:00:01]} 39. Rxh1 {[%clk 0:00:09]}  Rxh1 {[%clk 0:00:02]} 40. Kxg2 {[%clk 0:00:09]}  Rhh8 {[%clk 0:00:02]} 41. Qxg5+ {[%clk 0:00:09]}  Kf8 {[%clk 0:00:01]} 42. Qe5 {[%clk 0:00:09]}  Kg8 {[%clk 0:00:02]} 43. Qg5+ {[%clk 0:00:09]}  Kf8 {[%clk 0:00:01]} 44. Qe5 {[%clk 0:00:09]}  Kg8 {[%clk 0:00:02]} 45. g5 {[%clk 0:00:09]}  Rh7 {[%clk 0:00:02]} 46. f4 {[%clk 0:00:09]}  Rg7 {[%clk 0:00:03]} 47. Kf3 {[%clk 0:00:09]}  Rf8 {[%clk 0:00:03]} 48. Qf6 {[%clk 0:00:09]}  Rg6 {[%clk 0:00:03]} 49. Qe7 {[%clk 0:00:09]}  Re6 {[%clk 0:00:04]} 50. Qxb7 {[%clk 0:00:08]}  Rfe8 {[%clk 0:00:05]} 51. Qxa7 {[%clk 0:00:07]}  Re1 {[%clk 0:00:05]} 52. Qd7 {[%clk 0:00:06]}  Kg7 {[%clk 0:00:05]} 53. f5 {[%clk 0:00:06]}  R8e3+ {[%clk 0:00:05]} 54. Kf2 {[%clk 0:00:05]}  R1e2+ {[%clk 0:00:05]} 55. Kf1 {[%clk 0:00:05]}  Re1+ {[%clk 0:00:06]} 56. Kf2 {[%clk 0:00:06]}  R1e2+ {[%clk 0:00:06]} 57. Kf1 {[%clk 0:00:06]}  Re1+ {[%clk 0:00:07]} 58. Kf2 {[%clk 0:00:07]} 1/2-1/2


[Site "https://www.chess.com"]